[Event "Late-Titled-Tuesday-Blitz-February-06-2024"]
[Site "Chess.com"]
[Date "2024.02.06"]
[Round "4"]
[White "HansOnTwitch"]
[Black "Genghis_K"]
[Result "0-1"]
[WhiteElo "3152"]
[BlackElo "2914"]
[TimeControl "180+1"]
[EndTime "14:41:12 PST"]
[Termination "Genghis_K won by resignation"]

1. e4 {[%clk 0:03:00.9]} 1... c5 {[%clk 0:02:37.3]} 2. Nf3 {[%clk 0:03:00]} 2...
d6 {[%clk 0:02:38]} 3. d4 {[%clk 0:02:54.4]} 3... cxd4 {[%clk 0:02:37.9]} 4.
Nxd4 {[%clk 0:02:55.3]} 4... Nf6 {[%clk 0:02:38.5]} 5. Nc3 {[%clk 0:02:55.9]}
5... a6 {[%clk 0:02:39.2]} 6. h3 {[%clk 0:02:56.6]} 6... e6 {[%clk 0:02:39.3]}
7. g4 {[%clk 0:02:55.1]} 7... h6 {[%clk 0:02:40.1]} 8. Bg2 {[%clk 0:02:53.6]}
8... Be7 {[%clk 0:02:40.6]} 9. Be3 {[%clk 0:02:52.6]} 9... Nc6 {[%clk
0:02:40.1]} 10. O-O {[%clk 0:02:51.3]} 10... Nd7 {[%clk 0:02:32.7]} 11. f4
{[%clk 0:02:50.2]} 11... O-O {[%clk 0:02:25.1]} 12. Nxc6 {[%clk 0:02:48.7]}
12... bxc6 {[%clk 0:02:25.1]} 13. Qd2 {[%clk 0:02:45.4]} 13... Rb8 {[%clk
0:02:24.2]} 14. b3 {[%clk 0:02:45.5]} 14... d5 {[%clk 0:02:23.8]} 15. Na4 {[%clk
0:02:22.2]} 15... Nf6 {[%clk 0:02:04.6]} 16. e5 {[%clk 0:02:21.6]} 16... Nd7
{[%clk 0:02:01.8]} 17. Rae1 {[%clk 0:01:11.4]} 17... c5 {[%clk 0:01:55.1]} 18.
c4 {[%clk 0:01:07.9]} 18... d4 {[%clk 0:01:52.7]} 19. Bf2 {[%clk 0:01:08.4]}
19... Bb7 {[%clk 0:01:47.9]} 20. Bg3 {[%clk 0:01:08.6]} 20... Bh4 {[%clk
0:01:38.6]} 21. Kh2 {[%clk 0:00:59.8]} 21... Bxg3+ {[%clk 0:01:33.2]} 22. Kxg3
{[%clk 0:01:00.7]} 22... Qc7 {[%clk 0:01:33.6]} 23. h4 {[%clk 0:00:56.5]} 23...
Rbe8 {[%clk 0:01:15]} 24. Bxb7 {[%clk 0:00:52.3]} 24... Qxb7 {[%clk 0:01:15.1]}
25. Nb2 {[%clk 0:00:47]} 25... f6 {[%clk 0:01:13.5]} 26. Nd3 {[%clk 0:00:46.3]}
26... fxe5 {[%clk 0:01:12.4]} 27. fxe5 {[%clk 0:00:47.2]} 27... Rxf1 {[%clk
0:01:03.9]} 28. Rxf1 {[%clk 0:00:48.1]} 28... Qc7 {[%clk 0:01:03.5]} 29. Qe2
{[%clk 0:00:44.1]} 29... a5 {[%clk 0:00:56.2]} 30. g5 {[%clk 0:00:44.4]} 30...
hxg5 {[%clk 0:00:53.2]} 31. hxg5 {[%clk 0:00:45.3]} 31... Rf8 {[%clk 0:00:52.2]}
32. Rxf8+ {[%clk 0:00:36.1]} 32... Nxf8 {[%clk 0:00:43.5]} 33. Qe4 {[%clk
0:00:35.5]} 33... Qe7 {[%clk 0:00:43.6]} 34. Kg4 {[%clk 0:00:35.4]} 34... Nh7
{[%clk 0:00:40.6]} 35. Qa8+ {[%clk 0:00:33.2]} 35... Nf8 {[%clk 0:00:33.2]} 36.
Nf4 {[%clk 0:00:28]} 36... Qf7 {[%clk 0:00:32.1]} 37. Qe4 {[%clk 0:00:27]} 37...
g6 {[%clk 0:00:30.9]} 38. Kg3 {[%clk 0:00:18.9]} 38... Kg7 {[%clk 0:00:16.2]}
39. Kg4 {[%clk 0:00:16.2]} 39... Kg8 {[%clk 0:00:14.9]} 40. Kg3 {[%clk
0:00:14.4]} 40... Kg7 {[%clk 0:00:15.3]} 41. Kg2 {[%clk 0:00:13.8]} 41... Qe7
{[%clk 0:00:13]} 42. Nh3 {[%clk 0:00:12.2]} 42... Qf7 {[%clk 0:00:13.3]} 43. Qf4
{[%clk 0:00:12.3]} 43... Nd7 {[%clk 0:00:08.8]} 44. Kg3 {[%clk 0:00:09.7]} 44...
Qe7 {[%clk 0:00:04.8]} 45. Nf2 {[%clk 0:00:09.3]} 45... Qf7 {[%clk 0:00:02.7]}
46. Qxf7+ {[%clk 0:00:09.2]} 46... Kxf7 {[%clk 0:00:03.3]} 47. Kf4 {[%clk
0:00:10.1]} 47... Ke7 {[%clk 0:00:03.7]} 48. Nd3 {[%clk 0:00:09.9]} 48... Kf7
{[%clk 0:00:03.6]} 49. Ke4 {[%clk 0:00:10.4]} 49... Ke7 {[%clk 0:00:04.1]} 50.
a3 {[%clk 0:00:10.7]} 50... Kd8 {[%clk 0:00:04.4]} 51. Nf4 {[%clk 0:00:10.8]}
51... Nf8 {[%clk 0:00:03.8]} 52. Nd3 {[%clk 0:00:11.2]} 52... Nd7 {[%clk
0:00:03.8]} 53. b4 {[%clk 0:00:11.7]} 53... cxb4 {[%clk 0:00:02.2]} 54. axb4
{[%clk 0:00:12.6]} 54... a4 {[%clk 0:00:02.8]} 55. Kxd4 {[%clk 0:00:12.8]} 55...
a3 {[%clk 0:00:02.8]} 56. Kc3 {[%clk 0:00:13.5]} 56... Kc7 {[%clk 0:00:03.2]}
57. Kb3 {[%clk 0:00:12.3]} 57... Nb6 {[%clk 0:00:03.8]} 58. c5 {[%clk
0:00:12.5]} 58... Nd5 {[%clk 0:00:04.5]} 59. Kxa3 {[%clk 0:00:12.4]} 59... Nc3
{[%clk 0:00:05.3]} 60. Kb3 {[%clk 0:00:12.5]} 60... Ne4 {[%clk 0:00:06.2]} 61.
b5 {[%clk 0:00:12.4]} 61... Nxg5 {[%clk 0:00:06.8]} 62. Kc4 {[%clk 0:00:12.3]}
62... Nf3 {[%clk 0:00:06.9]} 63. b6+ {[%clk 0:00:12.1]} 63... Kc6 {[%clk
0:00:06.8]} 64. Nb4+ {[%clk 0:00:12.4]} 64... Kb7 {[%clk 0:00:07.6]} 65. Kb5
{[%clk 0:00:13.2]} 65... Nd4+ {[%clk 0:00:08.3]} 66. Kc4 {[%clk 0:00:13.5]}
66... Nf3 {[%clk 0:00:08.1]} 67. Nd3 {[%clk 0:00:13.3]} 67... g5 {[%clk
0:00:08.3]} 68. Nb4 {[%clk 0:00:06.9]} 68... g4 {[%clk 0:00:05.2]} 69. Kb5
{[%clk 0:00:06.9]} 69... Nd4+ {[%clk 0:00:05.5]} 70. Kc4 {[%clk 0:00:07.1]}
70... g3 {[%clk 0:00:03.4]} 71. Kxd4 {[%clk 0:00:04.1]} 71... g2 {[%clk
0:00:04.1]} 72. Kc4 {[%clk 0:00:04.8]} 72... g1=Q {[%clk 0:00:04.7]} 73. Nd3
{[%clk 0:00:03.7]} 73... Qe3 {[%clk 0:00:04.5]} 74. Kc3 {[%clk 0:00:03.8]} 74...
Qe4 {[%clk 0:00:04.5]} 75. Kd2 {[%clk 0:00:03.9]} 75... Qd4 {[%clk 0:00:04.9]}
76. Kc2 {[%clk 0:00:04.2]} 76... Kc6 {[%clk 0:00:04.4]} 77. Kd2 {[%clk
0:00:04.8]} 77... Qe4 {[%clk 0:00:03.4]} 78. Kc3 {[%clk 0:00:05.1]} 78... Qe3
{[%clk 0:00:03.3]} 79. Kc4 {[%clk 0:00:05.4]} 79... Qe2 {[%clk 0:00:03.6]} 80.
Kd4 {[%clk 0:00:05.5]} 80... Qg4+ {[%clk 0:00:04]} 81. Kc3 {[%clk 0:00:05.9]}
81... Qh4 {[%clk 0:00:04.8]} 82. Kb3 {[%clk 0:00:05.1]} 82... Qd4 {[%clk
0:00:05.4]} 83. Kc2 {[%clk 0:00:05.4]} 83... Qc4+ {[%clk 0:00:04.4]} 84. Kd2
{[%clk 0:00:05.9]} 84... Qb3 {[%clk 0:00:04.6]} 85. Ke3 {[%clk 0:00:04.4]} 85...
Kd5 {[%clk 0:00:05.1]} 86. Kd2 {[%clk 0:00:04.7]} 86... Kd4 {[%clk 0:00:05.4]}
87. Nc1 {[%clk 0:00:04.5]} 87... Qc3+ {[%clk 0:00:05.1]} 88. Kd1 {[%clk
0:00:05.1]} 88... Kxc5 {[%clk 0:00:04.3]} 89. b7 {[%clk 0:00:05.8]} 89... Qd4+
{[%clk 0:00:04.5]} 90. Kc2 {[%clk 0:00:06.5]} 90... Qc4+ {[%clk 0:00:04.9]} 91.
Kb2 {[%clk 0:00:05.9]} 91... Qb4+ {[%clk 0:00:05.2]} 92. Nb3+ {[%clk 0:00:06.8]}
92... Kd5 {[%clk 0:00:05.8]} 0-1

[Event "Late-Titled-Tuesday-Blitz-February-06-2024"]
[Site "Chess.com"]
[Date "2024.02.06"]
[Round "4"]
[White "Mikasinski"]
[Black "Fandorine"]
[Result "1-0"]
[WhiteElo "2615"]
[BlackElo "2935"]
[TimeControl "180+1"]
[EndTime "14:41:21 PST"]
[Termination "Mikasinski won by checkmate"]

1. e4 {[%clk 0:02:56.7]} 1... e5 {[%clk 0:02:54.2]} 2. Nf3 {[%clk 0:02:56.3]}
2... Nc6 {[%clk 0:02:54.6]} 3. Nc3 {[%clk 0:02:56.6]} 3... Nf6 {[%clk 0:02:52]}
4. Bb5 {[%clk 0:02:57.2]} 4... Bb4 {[%clk 0:02:48.2]} 5. O-O {[%clk 0:02:57.4]}
5... O-O {[%clk 0:02:48.2]} 6. d3 {[%clk 0:02:57.6]} 6... Bxc3 {[%clk
0:02:48.1]} 7. bxc3 {[%clk 0:02:57.8]} 7... d6 {[%clk 0:02:48.7]} 8. Re1 {[%clk
0:02:58.3]} 8... Bd7 {[%clk 0:02:47.4]} 9. Rb1 {[%clk 0:02:56.3]} 9... Ne7
{[%clk 0:02:39.1]} 10. Bc4 {[%clk 0:02:51.9]} 10... b6 {[%clk 0:02:38.5]} 11. d4
{[%clk 0:02:50]} 11... Ng6 {[%clk 0:02:36.1]} 12. h3 {[%clk 0:02:39.2]} 12...
Re8 {[%clk 0:02:32.2]} 13. Ng5 {[%clk 0:02:30.8]} 13... Rf8 {[%clk 0:02:23.7]}
14. Ba3 {[%clk 0:02:14.4]} 14... h6 {[%clk 0:02:19.9]} 15. Nf3 {[%clk
0:02:12.1]} 15... Re8 {[%clk 0:02:13.3]} 16. Bd3 {[%clk 0:02:06]} 16... Nh7
{[%clk 0:02:04.4]} 17. dxe5 {[%clk 0:01:59.5]} 17... dxe5 {[%clk 0:02:01.8]} 18.
Bc4 {[%clk 0:02:00]} 18... c6 {[%clk 0:01:48.2]} 19. Qd6 {[%clk 0:01:56]} 19...
Be6 {[%clk 0:01:45.3]} 20. Bxe6 {[%clk 0:01:23.4]} 20... Rxe6 {[%clk 0:01:44.9]}
21. Qxd8+ {[%clk 0:01:19.7]} 21... Rxd8 {[%clk 0:01:44.5]} 22. Rbd1 {[%clk
0:01:20.4]} 22... Ree8 {[%clk 0:01:41.8]} 23. Rd6 {[%clk 0:01:18.8]} 23... Rxd6
{[%clk 0:01:38.8]} 24. Bxd6 {[%clk 0:01:19.2]} 24... c5 {[%clk 0:01:36.1]} 25.
Rd1 {[%clk 0:01:16.6]} 25... Rd8 {[%clk 0:01:32.1]} 26. Rd2 {[%clk 0:01:04.9]}
26... Nf6 {[%clk 0:01:31.8]} 27. Bc7 {[%clk 0:01:01.2]} 27... Re8 {[%clk
0:01:19.7]} 28. Re2 {[%clk 0:00:38.8]} 28... Nd7 {[%clk 0:00:54.9]} 29. Rd2
{[%clk 0:00:36.8]} 29... Ngf8 {[%clk 0:00:52.5]} 30. c4 {[%clk 0:00:24.3]} 30...
f6 {[%clk 0:00:51.8]} 31. a4 {[%clk 0:00:22.8]} 31... Kf7 {[%clk 0:00:43.4]} 32.
a5 {[%clk 0:00:22.4]} 32... Rc8 {[%clk 0:00:43.3]} 33. axb6 {[%clk 0:00:21.7]}
33... axb6 {[%clk 0:00:44.2]} 34. Bd6 {[%clk 0:00:20.6]} 34... Ne6 {[%clk
0:00:44.8]} 35. c3 {[%clk 0:00:19.1]} 35... h5 {[%clk 0:00:34.2]} 36. Ne1 {[%clk
0:00:19.1]} 36... Ra8 {[%clk 0:00:29.4]} 37. f3 {[%clk 0:00:16.5]} 37... Ke8
{[%clk 0:00:24.4]} 38. Kf2 {[%clk 0:00:15.6]} 38... Ra4 {[%clk 0:00:24.2]} 39.
Nc2 {[%clk 0:00:14.5]} 39... Rxc4 {[%clk 0:00:23.3]} 40. Rd3 {[%clk 0:00:06.8]}
40... Ra4 {[%clk 0:00:17.4]} 41. Ne3 {[%clk 0:00:06.4]} 41... Ra2+ {[%clk
0:00:18]} 42. Kf1 {[%clk 0:00:03.8]} 42... g6 {[%clk 0:00:15.6]} 43. Nd5 {[%clk
0:00:03.9]} 43... Rc2 {[%clk 0:00:11]} 44. Rd1 {[%clk 0:00:03.4]} 44... Ra2
{[%clk 0:00:09.3]} 45. Rb1 {[%clk 0:00:03.6]} 45... Ra6 {[%clk 0:00:06.9]} 46.
Bc7 {[%clk 0:00:04.2]} 46... Kf7 {[%clk 0:00:04.7]} 47. Bxb6 {[%clk 0:00:04.6]}
47... Nf4 {[%clk 0:00:04.8]} 48. Nxf4 {[%clk 0:00:02.2]} 48... Rxb6 {[%clk
0:00:05]} 49. Rd1 {[%clk 0:00:02.2]} 49... Nb8 {[%clk 0:00:03.5]} 50. Nd5 {[%clk
0:00:02.3]} 50... Rb3 {[%clk 0:00:03.9]} 51. Ra1 {[%clk 0:00:02.6]} 51... Rb7
{[%clk 0:00:04.1]} 52. Ra8 {[%clk 0:00:02.5]} 52... Nd7 {[%clk 0:00:04.8]} 53.
Ra6 {[%clk 0:00:02.4]} 53... f5 {[%clk 0:00:04.9]} 54. exf5 {[%clk 0:00:02.1]}
54... gxf5 {[%clk 0:00:05.8]} 55. Ne3 {[%clk 0:00:02.8]} 55... f4 {[%clk
0:00:05.7]} 56. Nc4 {[%clk 0:00:03.4]} 56... Rb1+ {[%clk 0:00:05.8]} 57. Ke2
{[%clk 0:00:03.2]} 57... Rc1 {[%clk 0:00:06.4]} 58. Kd2 {[%clk 0:00:03.1]} 58...
Rg1 {[%clk 0:00:06.2]} 59. Ra7 {[%clk 0:00:01.8]} 59... Ke6 {[%clk 0:00:06.1]}
60. Kd3 {[%clk 0:00:02.4]} 60... Rd1+ {[%clk 0:00:05.6]} 61. Kc2 {[%clk
0:00:02.5]} 61... Rg1 {[%clk 0:00:05.3]} 62. Ra6+ {[%clk 0:00:03.1]} 62... Ke7
{[%clk 0:00:04.9]} 63. Ra7 {[%clk 0:00:03.5]} 63... Rxg2+ {[%clk 0:00:05.3]} 64.
Kb3 {[%clk 0:00:04.1]} 64... Ke6 {[%clk 0:00:05.6]} 65. Ra6+ {[%clk 0:00:04.5]}
65... Kf5 {[%clk 0:00:05.5]} 66. Nd6+ {[%clk 0:00:04.7]} 66... Kg6 {[%clk
0:00:05.9]} 67. Ne4+ {[%clk 0:00:03]} 67... Kf7 {[%clk 0:00:05.5]} 68. Ra7
{[%clk 0:00:02.3]} 68... Ke8 {[%clk 0:00:06.1]} 69. Nd6+ {[%clk 0:00:01.9]}
69... Ke7 {[%clk 0:00:05.5]} 70. Ne4 {[%clk 0:00:02.2]} 70... Kd8 {[%clk
0:00:05.7]} 71. Ra8+ {[%clk 0:00:01.9]} 71... Kc7 {[%clk 0:00:06.2]} 72. Ra7+
{[%clk 0:00:02.5]} 72... Kc6 {[%clk 0:00:06.8]} 73. Ra6+ {[%clk 0:00:03]} 73...
Kb5 {[%clk 0:00:07.1]} 74. Rd6 {[%clk 0:00:02.8]} 74... c4+ {[%clk 0:00:07.6]}
75. Ka3 {[%clk 0:00:03.4]} 75... Nb6 {[%clk 0:00:08.2]} 76. Rd8 {[%clk
0:00:01.5]} 76... h4 {[%clk 0:00:07.1]} 77. Nd6+ {[%clk 0:00:02.1]} 77... Kc6
{[%clk 0:00:06.8]} 78. Nf5 {[%clk 0:00:02.5]} 78... Rg3 {[%clk 0:00:06.7]} 79.
Rd6+ {[%clk 0:00:03]} 79... Kc5 {[%clk 0:00:06.6]} 80. Re6 {[%clk 0:00:02.2]}
80... Rxf3 {[%clk 0:00:06.1]} 81. Rxe5+ {[%clk 0:00:02.6]} 81... Nd5 {[%clk
0:00:06.3]} 82. Ne7 {[%clk 0:00:02.3]} 82... Rxc3+ {[%clk 0:00:06.5]} 83. Kb2
{[%clk 0:00:02.5]} 83... Rd3 {[%clk 0:00:07.2]} 84. Ng6 {[%clk 0:00:02.9]} 84...
f3 {[%clk 0:00:06.8]} 85. Nf4 {[%clk 0:00:03.5]} 85... Rd2+ {[%clk 0:00:05.6]}
86. Kc1 {[%clk 0:00:03.7]} 86... c3 {[%clk 0:00:06.2]} 87. Ne6+ {[%clk
0:00:02.3]} 87... Kc4 {[%clk 0:00:06.5]} 88. Re4+ {[%clk 0:00:02.2]} 88... Kd3
{[%clk 0:00:06.4]} 89. Nc5# {[%clk 0:00:02.7]} 1-0

[Event "Late-Titled-Tuesday-Blitz-February-06-2024"]
[Site "Chess.com"]
[Date "2024.02.06"]
[Round "4"]
[White "traviscottofficial"]
[Black "Chempiblinka"]
[Result "1-0"]
[WhiteElo "2678"]
[BlackElo "2350"]
[TimeControl "180+1"]
[EndTime "14:41:50 PST"]
[Termination "traviscottofficial won on time"]

1. d4 {[%clk 0:03:00.9]} 1... Nf6 {[%clk 0:02:59.7]} 2. c4 {[%clk 0:03:01.5]}
2... g6 {[%clk 0:03:00.1]} 3. Nc3 {[%clk 0:03:01.9]} 3... Bg7 {[%clk 0:03:00.7]}
4. e4 {[%clk 0:03:01.8]} 4... d6 {[%clk 0:03:01.1]} 5. Nf3 {[%clk 0:02:59.6]}
5... O-O {[%clk 0:03:00.1]} 6. Be2 {[%clk 0:03:00.1]} 6... Bg4 {[%clk
0:02:58.4]} 7. O-O {[%clk 0:02:59.6]} 7... Nfd7 {[%clk 0:02:54.1]} 8. Be3 {[%clk
0:02:56.8]} 8... Nc6 {[%clk 0:02:39]} 9. Nd2 {[%clk 0:02:36.3]} 9... Bxe2 {[%clk
0:02:35.3]} 10. Nxe2 {[%clk 0:02:37.2]} 10... e5 {[%clk 0:02:34.8]} 11. d5
{[%clk 0:02:36.7]} 11... Nd4 {[%clk 0:02:34.7]} 12. Bxd4 {[%clk 0:02:16.3]}
12... exd4 {[%clk 0:02:34.4]} 13. Nb3 {[%clk 0:02:11.7]} 13... Qh4 {[%clk
0:02:21.8]} 14. f3 {[%clk 0:02:04.1]} 14... Ne5 {[%clk 0:02:05.4]} 15. Rc1
{[%clk 0:01:52]} 15... d3 {[%clk 0:01:40.6]} 16. Ng3 {[%clk 0:01:46.4]} 16... c5
{[%clk 0:01:18.9]} 17. dxc6 {[%clk 0:01:13]} 17... bxc6 {[%clk 0:01:18.8]} 18.
Nh1 {[%clk 0:01:02.1]} 18... Bh6 {[%clk 0:01:02.6]} 19. Rc3 {[%clk 0:01:00.2]}
19... Be3+ {[%clk 0:00:54.6]} 20. Nf2 {[%clk 0:00:59.9]} 20... c5 {[%clk
0:00:28.7]} 21. Qe1 {[%clk 0:00:29.4]} 21... Bf4 {[%clk 0:00:26.4]} 22. Ng4
{[%clk 0:00:17.4]} 22... Qxe1 {[%clk 0:00:23.8]} 23. Rxe1 {[%clk 0:00:18.3]}
23... d2 {[%clk 0:00:20.9]} 24. Rd1 {[%clk 0:00:16]} 24... Nxg4 {[%clk
0:00:19.4]} 25. fxg4 {[%clk 0:00:16.9]} 25... Rfe8 {[%clk 0:00:17.9]} 26. g3
{[%clk 0:00:12.7]} 26... Be5 {[%clk 0:00:16.8]} 27. Rc2 {[%clk 0:00:10.6]} 27...
Bg7 {[%clk 0:00:15.9]} 28. Nxd2 {[%clk 0:00:09.8]} 28... Bd4+ {[%clk 0:00:15.1]}
29. Kg2 {[%clk 0:00:09.6]} 29... Rab8 {[%clk 0:00:14.9]} 30. b3 {[%clk
0:00:09.6]} 30... a5 {[%clk 0:00:15.3]} 31. Kf3 {[%clk 0:00:07.6]} 31... a4
{[%clk 0:00:15.1]} 32. Rb1 {[%clk 0:00:07.8]} 32... a3 {[%clk 0:00:14.6]} 33.
Re1 {[%clk 0:00:07.3]} 33... Bb2 {[%clk 0:00:13.9]} 34. Nb1 {[%clk 0:00:06.7]}
34... Re5 {[%clk 0:00:12.9]} 35. Nc3 {[%clk 0:00:06.1]} 35... Rbe8 {[%clk
0:00:11.6]} 36. Nd5 {[%clk 0:00:06.3]} 36... Kg7 {[%clk 0:00:11.3]} 37. Rce2
{[%clk 0:00:05.3]} 37... h6 {[%clk 0:00:10.4]} 38. h4 {[%clk 0:00:05.1]} 38...
Bd4 {[%clk 0:00:10.2]} 39. Nf4 {[%clk 0:00:03.5]} 39... Bb2 {[%clk 0:00:09]} 40.
Nd3 {[%clk 0:00:04.1]} 40... R5e7 {[%clk 0:00:04.7]} 41. Nxb2 {[%clk 0:00:04.8]}
41... axb2 {[%clk 0:00:05.4]} 42. Rxb2 {[%clk 0:00:05.7]} 42... f5 {[%clk
0:00:05]} 43. Rbe2 {[%clk 0:00:05.5]} 43... fxe4+ {[%clk 0:00:04.1]} 44. Rxe4
{[%clk 0:00:05.6]} 44... Rxe4 {[%clk 0:00:04.4]} 45. Rxe4 {[%clk 0:00:05.6]}
45... Rf8+ {[%clk 0:00:05.3]} 46. Kg2 {[%clk 0:00:05.8]} 46... Ra8 {[%clk
0:00:05.8]} 47. Re2 {[%clk 0:00:06.5]} 47... Kf6 {[%clk 0:00:06.2]} 48. Rd2
{[%clk 0:00:07.1]} 48... Ke6 {[%clk 0:00:06.4]} 49. Kf2 {[%clk 0:00:07.8]} 49...
Rf8+ {[%clk 0:00:06.8]} 50. Ke2 {[%clk 0:00:08.4]} 50... Rf6 {[%clk 0:00:06.6]}
51. Rd3 {[%clk 0:00:08.7]} 51... Rf8 {[%clk 0:00:06.1]} 52. Rd2 {[%clk
0:00:08.2]} 52... Ra8 {[%clk 0:00:06.4]} 53. Ke3 {[%clk 0:00:08.7]} 53... Kd7
{[%clk 0:00:06.7]} 54. Kd3 {[%clk 0:00:09]} 54... Re8 {[%clk 0:00:07.2]} 55. Re2
{[%clk 0:00:09.2]} 55... Rf8 {[%clk 0:00:07.6]} 56. Ke3 {[%clk 0:00:08.3]} 56...
Re8+ {[%clk 0:00:07.6]} 57. Kf3 {[%clk 0:00:08.7]} 57... Rf8+ {[%clk 0:00:08.1]}
58. Kg2 {[%clk 0:00:09.3]} 58... Ra8 {[%clk 0:00:08.1]} 59. Rf2 {[%clk
0:00:09.9]} 59... Re8 {[%clk 0:00:08.1]} 60. g5 {[%clk 0:00:10.2]} 60... hxg5
{[%clk 0:00:07]} 61. Kh3 {[%clk 0:00:09.6]} 61... gxh4 {[%clk 0:00:06]} 62. Kxh4
{[%clk 0:00:10.2]} 62... Re3 {[%clk 0:00:05.9]} 63. g4 {[%clk 0:00:10.1]} 63...
Ke6 {[%clk 0:00:05.7]} 64. Kg5 {[%clk 0:00:10]} 64... Rg3 {[%clk 0:00:05.8]} 65.
Re2+ {[%clk 0:00:09.8]} 65... Kd7 {[%clk 0:00:05.9]} 66. Rf2 {[%clk 0:00:09]}
66... Rg1 {[%clk 0:00:05.2]} 67. Rb2 {[%clk 0:00:06.8]} 67... Ke7 {[%clk
0:00:05.5]} 68. a4 {[%clk 0:00:06.7]} 68... Ke6 {[%clk 0:00:04.8]} 69. Ra2
{[%clk 0:00:07.1]} 69... Rb1 {[%clk 0:00:05]} 70. a5 {[%clk 0:00:07.6]} 70...
Rxb3 {[%clk 0:00:05.7]} 71. a6 {[%clk 0:00:08.5]} 71... Rb8 {[%clk 0:00:06]} 72.
a7 {[%clk 0:00:09.1]} 72... Ra8 {[%clk 0:00:06.5]} 73. Ra6 {[%clk 0:00:08.1]}
73... Ke5 {[%clk 0:00:06.4]} 74. Kxg6 {[%clk 0:00:08.3]} 74... Kd4 {[%clk
0:00:06.5]} 75. Kf6 {[%clk 0:00:08.5]} 75... Kxc4 {[%clk 0:00:06.8]} 76. g5
{[%clk 0:00:09.2]} 76... d5 {[%clk 0:00:06.7]} 77. g6 {[%clk 0:00:09.3]} 77...
d4 {[%clk 0:00:06.8]} 78. g7 {[%clk 0:00:09.7]} 78... d3 {[%clk 0:00:07.3]} 79.
Ra1 {[%clk 0:00:06.4]} 79... d2 {[%clk 0:00:06.7]} 80. Rd1 {[%clk 0:00:02.3]}
80... Kc3 {[%clk 0:00:06.6]} 81. Ke5 {[%clk 0:00:03]} 81... Kc2 {[%clk
0:00:06.7]} 82. Rg1 {[%clk 0:00:02.3]} 82... d1=Q {[%clk 0:00:05.3]} 83. Rxd1
{[%clk 0:00:02.8]} 83... Kxd1 {[%clk 0:00:05.3]} 84. Kd5 {[%clk 0:00:03.5]}
84... c4 {[%clk 0:00:04.1]} 85. Kxc4 {[%clk 0:00:03.6]} 85... Ke2 {[%clk
0:00:04.3]} 86. Kc5 {[%clk 0:00:04]} 86... Ke3 {[%clk 0:00:04.6]} 87. Kc6 {[%clk
0:00:04.4]} 87... Kf4 {[%clk 0:00:04.7]} 88. Kb7 {[%clk 0:00:04.8]} 88... Rg8
{[%clk 0:00:04.5]} 89. a8=Q {[%clk 0:00:05.3]} 89... Rxg7+ {[%clk 0:00:04.6]}
90. Kb6 {[%clk 0:00:05.8]} 90... Rg6+ {[%clk 0:00:04.9]} 91. Kc5 {[%clk
0:00:06.4]} 91... Rg5+ {[%clk 0:00:05.1]} 92. Kd4 {[%clk 0:00:07.1]} 92... Rf5
{[%clk 0:00:03.3]} 93. Qe4+ {[%clk 0:00:06.9]} 93... Kg5 {[%clk 0:00:03.3]} 94.
Qe7+ {[%clk 0:00:07.5]} 94... Kg4 {[%clk 0:00:03.4]} 95. Ke3 {[%clk 0:00:06.8]}
95... Rf3+ {[%clk 0:00:03]} 96. Ke2 {[%clk 0:00:07.5]} 96... Rf4 {[%clk
0:00:03]} 97. Qe6+ {[%clk 0:00:07.9]} 97... Kg5 {[%clk 0:00:03.2]} 98. Qg8+
{[%clk 0:00:06.9]} 98... Kf5 {[%clk 0:00:03.2]} 99. Ke3 {[%clk 0:00:07.6]} 99...
Re4+ {[%clk 0:00:02.3]} 100. Kd3 {[%clk 0:00:08.2]} 100... Rf4 {[%clk 0:00:02]}
101. Qh7+ {[%clk 0:00:08.6]} 101... Ke5 {[%clk 0:00:01.9]} 102. Qg6 {[%clk
0:00:08.1]} 102... Rf3+ {[%clk 0:00:01.4]} 103. Kc4 {[%clk 0:00:08]} 103... Rf4+
{[%clk 0:00:01.7]} 104. Kc5 {[%clk 0:00:08.6]} 104... Rf6 {[%clk 0:00:01.5]}
105. Qg4 {[%clk 0:00:08.2]} 105... Rf5 {[%clk 0:00:01.3]} 106. Kc4 {[%clk
0:00:07.7]} 106... Kf6 {[%clk 0:00:01.4]} 107. Qd4+ {[%clk 0:00:07.7]} 1-0

[Event "Late-Titled-Tuesday-Blitz-February-06-2024"]
[Site "Chess.com"]
[Date "2024.02.06"]
[Round "5"]
[White "Kiborg95"]
[Black "Practical-Play"]
[Result "1-0"]
[WhiteElo "2841"]
[BlackElo "2582"]
[TimeControl "180+1"]
[EndTime "14:50:32 PST"]
[Termination "Kiborg95 won by resignation"]

1. e4 {[%clk 0:02:59.2]} 1... d5 {[%clk 0:02:59.7]} 2. exd5 {[%clk 0:02:57.5]}
2... Nf6 {[%clk 0:03:00.2]} 3. Nf3 {[%clk 0:02:57.4]} 3... Qxd5 {[%clk
0:02:59.6]} 4. d4 {[%clk 0:02:57.3]} 4... Bg4 {[%clk 0:02:58.3]} 5. Be2 {[%clk
0:02:57.6]} 5... e6 {[%clk 0:02:58]} 6. h3 {[%clk 0:02:58.1]} 6... Bh5 {[%clk
0:02:56.7]} 7. O-O {[%clk 0:02:58.4]} 7... Nc6 {[%clk 0:02:55.5]} 8. c4 {[%clk
0:02:53.1]} 8... Qd7 {[%clk 0:02:51.5]} 9. Be3 {[%clk 0:02:42.8]} 9... O-O-O
{[%clk 0:02:50.7]} 10. Nbd2 {[%clk 0:02:43.1]} 10... Bd6 {[%clk 0:02:42.5]} 11.
c5 {[%clk 0:02:24]} 11... Be7 {[%clk 0:02:39.8]} 12. Qa4 {[%clk 0:02:02.5]}
12... Kb8 {[%clk 0:02:29.1]} 13. Bb5 {[%clk 0:02:02.6]} 13... Qd5 {[%clk
0:02:20.9]} 14. Bxc6 {[%clk 0:02:00.4]} 14... Qxc6 {[%clk 0:02:21.6]} 15. Qxc6
{[%clk 0:02:00.4]} 15... bxc6 {[%clk 0:02:22.5]} 16. Ne5 {[%clk 0:02:01.1]}
16... Kb7 {[%clk 0:02:21]} 17. Nb3 {[%clk 0:01:57.2]} 17... Nd5 {[%clk
0:02:16.9]} 18. Na5+ {[%clk 0:01:56.2]} 1-0

[Event "Late-Titled-Tuesday-Blitz-February-06-2024"]
[Site "Chess.com"]
[Date "2024.02.06"]
[Round "5"]
[White "NovakRatko"]
[Black "Horokoskii"]
[Result "1-0"]
[WhiteElo "2398"]
[BlackElo "2150"]
[TimeControl "180+1"]
[EndTime "14:50:40 PST"]
[Termination "NovakRatko won by resignation"]

1. d4 {[%clk 0:02:41.2]} 1... Nf6 {[%clk 0:02:57.5]} 2. c4 {[%clk 0:02:41.6]}
2... g6 {[%clk 0:02:55.5]} 3. Nc3 {[%clk 0:02:41.1]} 3... Bg7 {[%clk 0:02:51.3]}
4. e4 {[%clk 0:02:39.5]} 4... d6 {[%clk 0:02:51.5]} 5. f3 {[%clk 0:02:39.8]}
5... O-O {[%clk 0:02:49.9]} 6. Be3 {[%clk 0:02:40.2]} 6... c5 {[%clk 0:02:48.9]}
7. dxc5 {[%clk 0:02:40.3]} 7... dxc5 {[%clk 0:02:49.8]} 8. Qxd8 {[%clk
0:02:40.5]} 8... Rxd8 {[%clk 0:02:47.4]} 9. Bxc5 {[%clk 0:02:41.4]} 9... Na6
{[%clk 0:02:23.5]} 10. Bxe7 {[%clk 0:02:39.8]} 10... Re8 {[%clk 0:02:20.8]} 11.
Ba3 {[%clk 0:02:36.1]} 11... Nd7 {[%clk 0:02:15.7]} 12. O-O-O {[%clk 0:02:31.8]}
12... Ndc5 {[%clk 0:01:57.6]} 13. Nd5 {[%clk 0:02:29.3]} 13... Be6 {[%clk
0:01:52.6]} 14. Ne2 {[%clk 0:02:27.4]} 14... f5 {[%clk 0:01:51.3]} 15. Bxc5
{[%clk 0:02:14.5]} 15... Bxd5 {[%clk 0:01:50.8]} 16. Rxd5 {[%clk 0:02:11]} 1-0